bitfinex/quotes_BTCUSD_20240927
["timestamp","ask_amount","ask_price","bid_price","bid_amount"]
[1727415576059,0.31760037,65308.0,65307.0,0.43423694]
[1727415576266,0.31760037,65308.0,65307.0,1.23864165]
[1727415576697,0.31760037,65308.0,65307.0,1.05835371]
[1727415577119,0.31760037,65308.0,65307.0,0.256949]
[1727415577351,0.31760037,65308.0,65307.0,1.06135371]
[1727415577588,0.31760037,65308.0,65307.0,1.06035371]
[1727415577794,0.31860037,65308.0,65307.0,1.06035371]
[1727415578012,0.31860037,65308.0,65307.0,1.08335371]
[1727415579076,0.32560037,65308.0,65307.0,1.08435371]
[1727415579287,0.32460037,65308.0,65307.0,1.08435371]
[1727415579502,0.33160037,65308.0,65307.0,1.08435371]
[1727415581343,0.33160037,65308.0,65307.0,1.13982999]
[1727415582333,0.33160037,65308.0,65307.0,2.10794414]
[1727415582568,0.33160037,65308.0,65307.0,1.13982999]
[1727415583432,0.31760037,65308.0,65307.0,1.13882999]
[1727415583641,0.32460037,65308.0,65307.0,1.13982999]
[1727415583932,0.33160037,65308.0,65307.0,1.13982999]
[1727415584165,0.40900037,65308.0,65307.0,1.13982999]
[1727415584464,0.40200037,65308.0,65307.0,1.13982999]
[1727415585174,0.39500037,65308.0,65307.0,1.13882999]
[1727415585459,0.40200037,65308.0,65307.0,1.13982999]
[1727415585934,0.40900037,65308.0,65307.0,1.13982999]
[1727415587334,0.40900037,65308.0,65307.0,1.38789283]
[1727415587558,0.40900037,65308.0,65307.0,1.38796106]
[1727415588280,0.40900037,65308.0,65307.0,1.13989822]
[1727415589217,0.40900037,65308.0,65307.0,1.08435371]
[1727415591330,0.40900037,65308.0,65307.0,0.279949]
[1727415591535,0.33160037,65308.0,65307.0,0.279949]
[1727415591943,0.34156476,65308.0,65307.0,0.279949]
[1727415593714,0.34156476,65308.0,65307.0,0.4348215]
[1727415594712,0.33456476,65308.0,65307.0,0.4338215]
[1727415595141,0.34056476,65308.0,65307.0,0.4348215]
[1727415595961,0.32435772,65308.0,65307.0,0.279949]
[1727415596194,0.33035772,65308.0,65307.0,0.279949]
[1727415596445,0.33035772,65308.0,65307.0,0.4348215]
[1727415596647,0.33035772,65308.0,65307.0,0.279949]
[1727415597308,0.33035772,65308.0,65307.0,0.4348215]
[1727415597742,0.33035772,65308.0,65307.0,0.279949]
[1727415599949,0.33035772,65308.0,65300.0,0.15500751]
[1727415599950,0.099,65305.0,65300.0,0.15500751]
[1727415600161,0.0764,65302.0,65299.0,0.22968266]
[1727415600378,0.0764,65302.0,65298.0,0.306287]
[1727415600379,0.06300233,65301.0,65298.0,0.306287]
[1727415600586,0.06300233,65301.0,65300.0,0.153139]
[1727415600805,0.16200233,65301.0,65300.0,0.153139]
[1727415601038,0.16200233,65301.0,65299.0,0.15314]
[1727415601251,0.16358246,65301.0,65300.0,0.153139]
[1727415601463,0.16200233,65301.0,65300.0,0.023]
[1727415601673,0.16358246,65301.0,65300.0,0.178139]
[1727415601888,0.16358246,65301.0,65300.0,0.38165999]
[1727415602097,0.16200233,65301.0,65300.0,0.178139]
[1727415602960,0.19000233,65301.0,65300.0,0.178139]
[1727415603166,0.17600233,65301.0,65300.0,0.178139]
[1727415603372,0.16358281,65301.0,65300.0,0.29359298]
[1727415603587,0.17245468,65301.0,65300.0,0.29159298]
[1727415603806,0.17600233,65301.0,65300.0,0.29159298]
[1727415604027,0.17758281,65301.0,65300.0,0.29159298]
[1727415604446,0.17758281,65301.0,65300.0,0.35207098]
[1727415604670,0.19158281,65301.0,65300.0,0.35207098]
[1727415604890,0.17758281,65301.0,65300.0,0.35207098]
[1727415605097,0.16200233,65301.0,65300.0,0.35207098]
[1727415605308,0.19000233,65301.0,65300.0,0.35207098]
[1727415605534,0.19000233,65301.0,65300.0,0.55738767]
[1727415605761,0.19155236,65301.0,65300.0,0.55738767]
[1727415605973,0.16200233,65301.0,65300.0,0.35407098]
[1727415606177,0.17000233,65301.0,65300.0,0.35407098]
[1727415606380,0.17800233,65301.0,65300.0,0.55737217]
[1727415607303,0.17800233,65301.0,65300.0,0.55737185]
[1727415607507,0.17000233,65301.0,65300.0,0.55737185]
[1727415607954,0.17800233,65301.0,65300.0,0.55737185]
[1727415608376,0.17800233,65301.0,65300.0,0.55537185]
[1727415610593,0.17800233,65301.0,65300.0,0.35207098]
[1727415611042,0.17800233,65301.0,65300.0,0.35407098]
[1727415611264,0.17800233,65301.0,65300.0,0.50935892]
[1727415611265,0.07900233,65301.0,65300.0,0.50935892]
[1727415611713,0.07900233,65301.0,65300.0,0.66425482]
[1727415611937,0.07900233,65301.0,65300.0,0.76425482]
[1727415612151,0.07900233,65301.0,65300.0,0.60935892]
[1727415612397,0.07900233,65301.0,65300.0,0.66490558]
[1727415612618,0.08065633,65301.0,65300.0,0.66490558]
[1727415616694,0.08065633,65301.0,65300.0,0.4889736]
[1727415616917,0.08065633,65301.0,65300.0,0.66490558]
[1727415619717,0.001654,65308.0,65307.0,0.45405398]
[1727415619923,0.001654,65308.0,65307.0,0.60934192]
[1727415620172,0.461024,65308.0,65307.0,0.60934192]
[1727415620374,0.461024,65308.0,65307.0,0.66488591]
[1727415620591,0.46263306,65308.0,65307.0,0.76427746]
[1727415621001,0.46863306,65308.0,65307.0,0.60934192]
[1727415621202,0.56373306,65308.0,65307.0,0.62119431]
[1727415621614,0.56373306,65308.0,65307.0,0.50934192]
[1727415621828,0.56373306,65308.0,65307.0,0.51034192]
[1727415622058,0.55773306,65308.0,65307.0,0.51034192]
[1727415622267,0.55773306,65308.0,65307.0,0.50934192]
[1727415622487,0.55773306,65308.0,65307.0,0.35505398]
[1727415624244,0.55773306,65308.0,65307.0,0.35905398]
[1727415624691,0.55773306,65308.0,65307.0,0.35505398]
[1727415624909,0.55773306,65308.0,65307.0,0.35405398]
[1727415625125,0.55773306,65308.0,65307.0,0.36205398]
[1727415625337,0.55773306,65308.0,65307.0,0.35805398]
[1727415625806,0.55773306,65308.0,65307.0,0.36205398]
[1727415629747,0.55773306,65308.0,65307.0,0.51701431]
[1727415630203,0.46263306,65308.0,65307.0,0.61734192]
[1727415631550,0.46305901,65308.0,65307.0,0.61734192]
[1727415639626,0.46305901,65308.0,65307.0,0.67289115]
[1727415642513,0.461024,65308.0,65307.0,0.67289115]
[1727415644381,0.460724,65308.0,65307.0,0.67289115]
[1727415644671,0.45636021,65308.0,65307.0,0.67289115]
[1727415645105,0.45616021,65308.0,65307.0,0.67289115]
[1727415645351,0.45556021,65308.0,65307.0,0.67289115]
[1727415645589,0.45750598,65308.0,65307.0,0.67289115]
[1727415645828,0.45730598,65308.0,65307.0,0.67289115]
[1727415646037,0.45720598,65308.0,65307.0,0.67289115]
[1727415646277,0.45650598,65308.0,65307.0,0.67289115]
[1727415646736,0.45630598,65308.0,65307.0,0.67289115]
[1727415646973,0.45600598,65308.0,65307.0,0.67289115]
[1727415647211,0.45550598,65308.0,65307.0,0.67289115]
[1727415647682,0.45520598,65308.0,65307.0,0.67289115]
[1727415647925,0.45286021,65308.0,65307.0,0.67289115]
[1727415648144,0.45256021,65308.0,65307.0,0.67289115]
[1727415648367,0.45246021,65308.0,65307.0,0.67289115]
[1727415648665,0.45236021,65308.0,65307.0,0.67289115]
[1727415648886,0.45216021,65308.0,65307.0,0.67289115]
[1727415649520,0.45216021,65308.0,65307.0,0.73424915]
[1727415650472,0.45216021,65308.0,65307.0,0.67371912]
[1727415651171,0.4486157,65308.0,65307.0,0.67454612]
[1727415651403,0.4502697,65308.0,65307.0,0.67454612]
[1727415653523,0.43502096,65308.0,65307.0,0.67454612]
[1727415655132,0.53362096,65308.0,65307.0,0.55914417]
[1727415655348,0.53362096,65308.0,65307.0,0.61318812]
[1727415655761,0.53567769,65308.0,65307.0,0.61318812]
[1727415656596,0.43502096,65308.0,65307.0,0.61318812]
[1727415656804,0.43502096,65308.0,65307.0,1.41759283]
[1727415657445,0.43502096,65308.0,65307.0,1.49379283]
[1727415660272,0.43502096,65308.0,65307.0,1.41759283]
[1727415661894,0.52502096,65308.0,65307.0,0.61318812]
[1727415663700,0.52502096,65308.0,65307.0,1.41759283]
[1727415663900,0.52502096,65308.0,65307.0,0.61318812]
[1727415664675,0.52502096,65308.0,65307.0,1.41759283]
[1727415665168,0.43502096,65308.0,65307.0,1.82715567]
[1727415665389,0.43502096,65308.0,65307.0,0.77468812]
[1727415665390,0.28166096,65308.0,65307.0,0.77468812]
[1727415666251,0.28166096,65308.0,65307.0,1.02342699]
[1727415666703,0.18964796,65308.0,65307.0,0.77468812]
[1727415666916,0.12830596,65308.0,65307.0,0.77468812]
[1727415667331,0.09763496,65308.0,65307.0,0.77468812]
[1727415667537,3.4e-07,65308.0,65307.0,0.77468812]
[1727415668396,3.4e-07,65308.0,65307.0,0.95045294]
[1727415669237,3.4e-07,65308.0,65307.0,1.03205294]
[1727415669478,0.001654,65322.0,65321.0,0.17809]
[1727415669697,0.001654,65322.0,65321.0,0.43643909]
[1727415669915,0.0125717,65322.0,65321.0,0.4889371]
[1727415670112,0.001654,65322.0,65321.0,0.4889371]
[1727415670323,0.001654,65322.0,65321.0,0.43337794]
[1727415670530,0.001654,65322.0,65321.0,0.48891609]
[1727415671447,0.022654,65322.0,65321.0,0.43537794]
[1727415672521,0.012654,65322.0,65321.0,0.43437794]
[1727415672730,0.001654,65322.0,65321.0,0.43337794]
[1727415672962,0.003654,65322.0,65321.0,0.4888854]
[1727415673162,0.003654,65322.0,65321.0,0.43337794]
[1727415673382,0.002654,65322.0,65321.0,0.4450159]
[1727415673599,0.002654,65322.0,65321.0,0.4490159]
[1727415673821,0.002654,65322.0,65321.0,0.50450922]
[1727415674226,0.001656,65323.0,65322.0,0.125]
[1727415674471,0.001656,65323.0,65322.0,0.43643573]
[1727415674671,0.001656,65323.0,65322.0,0.43337494]
[1727415674882,0.001656,65323.0,65322.0,0.51267494]
[1727415675513,0.09,65330.0,65329.0,0.45383582]
[1727415675710,0.001656,65333.0,65332.0,0.155064]
[1727415675918,0.001656,65333.0,65332.0,0.51571248]
[1727415676261,0.001656,65333.0,65332.0,0.51265194]
[1727415677242,0.001656,65333.0,65332.0,0.66736526]
[1727415677453,0.0978,65338.0,65337.0,0.155052]
[1727415677662,0.0978,65338.0,65337.0,0.60910476]
[1727415677894,0.0978,65338.0,65337.0,0.6645119]
[1727415678305,0.001654,65347.0,65346.0,0.178031]
[1727415678515,0.001654,65347.0,65346.0,0.43637907]
[1727415678727,0.001654,65347.0,65346.0,0.43331894]
[1727415678939,0.099454,65347.0,65346.0,0.43331894]
[1727415680407,0.113454,65347.0,65346.0,0.44776056]
[1727415680616,0.099454,65347.0,65346.0,0.44676056]
[1727415681040,0.099454,65347.0,65346.0,0.44976056]
[1727415684549,0.558544,65347.0,65346.0,0.44976056]
[1727415684815,0.56960029,65347.0,65346.0,0.44976056]
[1727415687648,0.56960029,65347.0,65346.0,0.6520531]
[1727415688295,0.56960029,65347.0,65346.0,0.44976056]
[1727415692648,0.56960029,65347.0,65346.0,0.65196611]
[1727415697298,0.56960029,65347.0,65346.0,0.44976056]
[1727415699686,0.64590029,65347.0,65346.0,0.158031]
[1727415700188,0.64590029,65347.0,65346.0,0.29503221]
[1727415700416,0.64590029,65347.0,65346.0,0.41033872]
[1727415700911,0.64590029,65347.0,65346.0,0.40933872]
[1727415701141,0.64590029,65347.0,65346.0,0.40736338]
[1727415701365,0.64590029,65347.0,65346.0,0.40936338]
[1727415701565,0.64590029,65347.0,65346.0,0.27033751]
[1727415702111,0.64590029,65347.0,65346.0,0.40939066]
[1727415702360,0.64590029,65347.0,65346.0,0.40839066]
[1727415702619,0.64590029,65347.0,65346.0,0.27133751]
[1727415702852,0.64590029,65347.0,65346.0,0.40742923]
[1727415703106,0.64590029,65347.0,65346.0,0.40842923]
[1727415703580,0.64590029,65347.0,65346.0,0.27333751]
[1727415704207,0.64590029,65347.0,65346.0,0.156031]
[1727415704336,0.64590029,65347.0,65346.0,0.27133751]
[1727415706754,0.64590029,65347.0,65346.0,0.156031]
[1727415707634,0.64590029,65347.0,65346.0,0.154031]
[1727415707863,0.64590029,65347.0,65346.0,0.153031]
[1727415708068,0.64690029,65347.0,65346.0,0.153031]
[1727415708693,0.64590029,65347.0,65346.0,0.153031]
[1727415709114,0.64690029,65347.0,65346.0,0.153031]
[1727415713033,0.64690029,65347.0,65346.0,0.2903788]
[1727415713463,0.64690029,65347.0,65346.0,0.153031]
[1727415717122,0.64690029,65347.0,65346.0,0.143431]
[1727415717349,0.64690029,65347.0,65346.0,0.28098504]
[1727415718210,0.64690029,65347.0,65346.0,0.28099051]
[1727415718894,0.64690029,65347.0,65346.0,0.143431]
[1727415719460,0.64690029,65347.0,65346.0,0.28099841]
[1727415719666,0.64690029,65347.0,65346.0,0.2809978]
[1727415720072,0.64690029,65347.0,65346.0,0.28099776]
[1727415720294,0.64690029,65347.0,65346.0,0.143431]
[1727415720951,0.64690029,65347.0,65346.0,0.28100068]
[1727415721492,0.64690029,65347.0,65346.0,0.143431]
[1727415724033,0.57060029,65347.0,65346.0,0.145431]
[1727415724266,0.57060029,65347.0,65346.0,0.34851905]
[1727415724483,0.57060029,65347.0,65346.0,0.145431]
[1727415724951,0.57060029,65347.0,65346.0,0.146258]
[1727415725184,0.56960029,65347.0,65346.0,0.146258]
[1727415725413,0.56960029,65347.0,65346.0,0.148258]
[1727415726318,0.56960029,65347.0,65346.0,0.151258]
[1727415726791,0.56960029,65347.0,65346.0,0.149258]
[1727415728921,0.65170029,65347.0,65346.0,0.149258]
[1727415729647,0.65170029,65347.0,65346.0,0.146258]
[1727415730103,0.65670029,65347.0,65346.0,0.147258]
[1727415730320,0.65170029,65347.0,65346.0,0.144258]
[1727415730575,0.65170029,65347.0,65346.0,0.145258]
[1727415730793,0.66570029,65347.0,65346.0,0.146258]
[1727415731010,0.66570029,65347.0,65346.0,0.148258]
[1727415731223,0.66570029,65347.0,65346.0,0.147258]
[1727415731224,0.57760029,65347.0,65346.0,0.147258]
[1727415731437,0.56960029,65347.0,65346.0,0.34938859]
[1727415731658,0.57660029,65347.0,65346.0,0.35038859]
[1727415731879,0.57660029,65347.0,65346.0,0.145258]
[1727415732791,0.58360029,65347.0,65346.0,0.146258]
[1727415733033,0.58360029,65347.0,65346.0,0.34943507]
[1727415733278,0.58360029,65347.0,65346.0,0.146258]
[1727415737156,0.58360029,65347.0,65346.0,0.34952097]
[1727415737381,0.58360029,65347.0,65346.0,0.146258]
[1727415739635,0.58360029,65347.0,65346.0,0.34959264]
[1727415739870,0.58360029,65347.0,65346.0,0.146258]
[1727415740746,0.58360029,65347.0,65346.0,0.002827]
[1727415740972,0.81332929,65347.0,65346.0,0.002827]
[1727415741420,0.153033,65345.0,65344.0,0.13773181]
[1727415741654,0.324838,65343.0,65342.0,0.13773181]
[1727415741871,0.783928,65343.0,65342.0,0.13773181]
[1727415742391,0.783928,65343.0,65341.0,0.13773181]
[1727415742392,0.15304,65342.0,65341.0,0.13773181]
[1727415742609,0.78393,65342.0,65341.0,0.13773181]
[1727415742826,0.153045,65340.0,65339.0,0.13773181]
[1727415743039,0.248149,65339.0,65337.0,0.13773181]
[1727415743255,0.55419,65338.0,65337.0,0.13773181]
[1727415743501,0.0951,65337.0,65332.0,0.20418155]
[1727415743729,0.0951,65337.0,65332.0,0.35724455]
[1727415743730,0.45909,65336.0,65332.0,0.35724455]
[1727415743952,0.55419,65336.0,65332.0,0.35724455]
[1727415744402,0.63089,65336.0,65332.0,0.20418155]
[1727415744662,0.63089,65336.0,65332.0,0.000827]
[1727415744875,0.63189,65336.0,65332.0,0.000827]
[1727415745094,0.784944,65336.0,65335.0,0.13853679]
[1727415745330,0.79381811,65336.0,65335.0,0.000827]
[1727415745784,0.153062,65333.0,65332.0,0.13853679]
[1727415746028,0.89926341,65333.0,65332.0,0.000827]
[1727415746272,0.90812913,65333.0,65332.0,0.000827]
[1727415747208,0.153069,65330.0,65329.0,0.13770979]
[1727415747432,0.57440141,65330.0,65326.0,0.13770979]
[1727415747672,0.57440141,65330.0,65320.0,0.58605813]
[1727415747673,0.248178,65326.0,65325.0,0.13770979]
[1727415747898,0.24818,65325.0,65324.0,0.13770979]
[1727415748113,0.70727,65325.0,65324.0,0.13770979]
[1727415748328,0.70727,65325.0,65323.0,0.13770979]
[1727415748329,0.61217,65325.0,65323.0,0.13770979]
[1727415748569,0.0951,65324.0,65323.0,0.13770979]
[1727415748789,0.55419,65324.0,65323.0,0.13770979]
[1727415749233,0.56305572,65324.0,65323.0,0.13770979]
[1727415749452,0.56305572,65324.0,65322.0,0.29079679]
[1727415749661,0.0951,65323.0,65322.0,0.13770979]
[1727415749886,0.56799202,65323.0,65322.0,0.13770979]
[1727415750329,0.0951,65322.0,65321.0,0.13770979]
[1727415750592,0.56805061,65322.0,65321.0,0.13770979]
[1727415751084,0.57691633,65322.0,65321.0,0.29079979]
[1727415751300,0.57691633,65322.0,65321.0,0.15309]
[1727415751513,0.57691633,65322.0,65321.0,0.29079979]
[1727415752141,0.57891424,65322.0,65321.0,0.29079979]
[1727415752401,0.57891424,65322.0,65321.0,0.15309]
[1727415753035,0.58491424,65322.0,65321.0,0.29079979]
[1727415753462,0.57891424,65322.0,65321.0,0.29079979]
[1727415753897,0.58491424,65322.0,65321.0,0.29079979]
[1727415754309,0.58491424,65322.0,65321.0,0.15309]
[1727415755004,0.58191424,65322.0,65321.0,0.15309]
[1727415755221,0.56805363,65322.0,65321.0,0.29047826]
[1727415755448,0.56805363,65322.0,65321.0,0.15309]
[1727415756500,0.57205363,65322.0,65321.0,0.15309]
[1727415756908,0.56805363,65322.0,65321.0,0.15309]
[1727415757122,0.57105363,65322.0,65321.0,0.15309]
[1727415760658,0.57105363,65322.0,65321.0,0.153917]
[1727415761132,0.56019,65322.0,65321.0,0.153917]
[1727415761399,0.56218645,65322.0,65321.0,0.153917]
[1727415763611,0.55918645,65322.0,65321.0,0.29122919]
[1727415763914,0.56218645,65322.0,65321.0,0.153917]
[1727415764590,0.57105217,65322.0,65321.0,0.153917]
[1727415765167,0.57105217,65322.0,65321.0,0.176917]
[1727415766025,0.56805217,65322.0,65321.0,0.176917]
[1727415766370,0.57105217,65322.0,65321.0,0.176917]
[1727415768341,0.57105217,65322.0,65321.0,0.29230225]
[1727415769479,0.56019,65322.0,65321.0,0.29230225]
[1727415769712,0.56019,65322.0,65321.0,0.54959019]
[1727415769713,0.47595217,65322.0,65321.0,0.54959019]
[1727415769940,0.47595217,65322.0,65321.0,0.62989019]
[1727415770159,0.46509,65322.0,65321.0,0.62989019]
[1727415770408,0.47595217,65322.0,65321.0,0.62989019]
[1727415771050,0.47595217,65322.0,65321.0,0.63639019]
[1727415771257,0.47595217,65322.0,65321.0,0.69184388]
[1727415771484,0.46945217,65322.0,65321.0,0.69184388]
[1727415771706,0.35081689,65322.0,65321.0,0.69184388]
[1727415772117,0.34781689,65322.0,65321.0,0.69184388]
[1727415772322,0.31815489,65322.0,65321.0,0.69784388]
[1727415772781,0.31415489,65322.0,65321.0,0.69184388]
[1727415772984,0.31515489,65322.0,65321.0,0.69984388]
[1727415773600,0.31515489,65322.0,65321.0,0.69784388]
[1727415773812,0.21320544,65322.0,65321.0,0.69784388]
[1727415774055,0.21420544,65322.0,65321.0,0.70284388]
[1727415774270,0.20334327,65322.0,65321.0,0.70284388]
[1727415774500,0.07701304,65322.0,65321.0,0.76312932]
[1727415776423,0.07701304,65322.0,65321.0,0.58745863]
[1727415776638,0.07701304,65322.0,65321.0,0.76312932]
[1727415782467,0.07701304,65322.0,65321.0,0.91753417]
[1727415783385,0.07701304,65322.0,65321.0,0.76312932]
[1727415783739,0.07701304,65322.0,65321.0,0.91753417]
[1727415783948,0.07701304,65322.0,65321.0,0.76312932]
[1727415784359,0.001654,65332.0,65331.0,0.178066]
[1727415784593,0.001654,65332.0,65331.0,0.60902463]
[1727415786054,0.001654,65332.0,65331.0,0.61302463]
[1727415786461,0.001654,65332.0,65331.0,0.61702463]
[1727415788831,0.001654,65332.0,65331.0,0.62882638]
[1727415794381,0.0943,65339.0,65338.0,0.002]
[1727415794520,0.0943,65339.0,65338.0,0.54862383]
[1727415794950,0.0943,65339.0,65338.0,0.43333794]
[1727415795152,0.0943,65339.0,65338.0,0.54862383]
[1727415795580,0.0973,65339.0,65338.0,0.54862383]
[1727415795738,0.1003,65339.0,65338.0,0.54862383]
[1727415797052,0.098956,65339.0,65338.0,0.54862383]
[1727415797443,0.101956,65339.0,65338.0,0.54862383]
[1727415798645,0.0732875,65339.0,65338.0,0.54862383]
[1727415799069,0.0762875,65339.0,65338.0,0.55362383]
[1727415799456,0.0732875,65339.0,65338.0,0.55362383]
[1727415799958,0.0732875,65339.0,65338.0,0.55762383]
[1727415801902,0.1488875,65339.0,65338.0,0.55762383]
[1727415802767,0.1488875,65339.0,65338.0,0.21167059]
[1727415802961,0.30487929,65339.0,65338.0,0.009]
[1727415803428,0.153059,65334.0,65332.0,0.13727182]
[1727415803637,0.153059,65334.0,65326.0,0.47103248]
[1727415803638,0.153061,65334.0,65330.0,0.13727182]
[1727415803853,0.0029491,65333.0,65330.0,0.13727182]
[1727415804071,0.1745,65330.0,65327.0,0.13727182]
[1727415804503,0.153066,65331.0,65326.0,0.13727182]
[1727415804504,0.1745,65328.0,65326.0,0.13727182]
[1727415804716,0.55812,65327.0,65326.0,0.13727182]
[1727415805185,0.56106479,65327.0,65326.0,0.13727182]
[1727415805417,0.0989,65326.0,65323.0,0.153084]
[1727415805641,0.63372,65325.0,65324.0,0.13734168]
[1727415805921,0.63372,65325.0,65323.0,0.13734168]
[1727415805922,0.63662709,65325.0,65323.0,0.13734168]
[1727415806134,0.0989,65324.0,65322.0,0.13734168]
[1727415806363,0.0989,65324.0,65321.0,0.000827]
[1727415806364,0.0989,65322.0,65321.0,0.000827]
[1727415806583,0.80072621,65322.0,65321.0,0.09240014]
[1727415806800,0.80356471,65322.0,65321.0,0.000827]
[1727415807028,0.80356471,65322.0,65321.0,0.09240014]
[1727415807259,0.80356471,65322.0,65321.0,0.000827]
[1727415807497,0.80356471,65322.0,65321.0,0.06949909]
[1727415808439,0.80356471,65322.0,65321.0,0.000827]
[1727415808671,0.65047771,65322.0,65321.0,0.06949909]
[1727415808910,0.80356471,65322.0,65321.0,0.06949909]
[1727415809386,0.80356471,65322.0,65321.0,0.000827]
[1727415809627,0.67847771,65322.0,65321.0,0.06947563]
[1727415809861,0.67847771,65322.0,65321.0,0.000827]
[1727415810093,0.83156471,65322.0,65321.0,0.09240014]
[1727415810549,0.83156471,65322.0,65321.0,0.06946469]
[1727415810738,0.83156471,65322.0,65321.0,0.000827]
[1727415811889,0.67847771,65322.0,65321.0,0.000827]
[1727415812098,0.67847771,65322.0,65321.0,0.09240014]
[1727415812548,0.83156471,65322.0,65321.0,0.09240014]
[1727415812773,0.67847771,65322.0,65321.0,0.09240014]
[1727415812994,0.83156471,65322.0,65321.0,0.000827]
[1727415813859,0.83156471,65322.0,65321.0,0.06944248]
[1727415814066,0.83156471,65322.0,65321.0,0.000827]
[1727415815193,0.83156471,65322.0,65321.0,0.06943425]
[1727415815406,0.83156471,65322.0,65321.0,0.000827]
[1727415815832,0.67847771,65322.0,65321.0,0.06942633]
[1727415816049,0.67847771,65322.0,65321.0,0.000827]
[1727415816283,0.83156471,65322.0,65321.0,0.000827]
[1727415817447,0.83156471,65322.0,65321.0,0.04654584]
[1727415818415,0.67847771,65322.0,65321.0,0.04654584]
[1727415819325,0.67847771,65322.0,65321.0,0.000827]
[1727415819981,0.83156471,65322.0,65321.0,0.000827]
[1727415821963,0.83322071,65322.0,65321.0,0.000827]
[1727415823146,0.83322071,65322.0,65321.0,0.04652388]
[1727415823599,0.83322071,65322.0,65321.0,0.000827]
[1727415824489,0.83322071,65322.0,65321.0,0.04652388]
[1727415824965,0.83322071,65322.0,65321.0,0.000827]
[1727415825162,0.83322071,65322.0,65321.0,0.04651205]
[1727415825613,0.83322071,65322.0,65321.0,0.000827]
[1727415825840,0.83322071,65322.0,65321.0,0.45280994]
[1727415825841,0.49279004,65322.0,65321.0,0.45280994]
[1727415826066,0.49279004,65322.0,65321.0,0.61009788]
[1727415826538,0.488876,65322.0,65321.0,0.61009788]
[1727415826768,0.460876,65322.0,65321.0,0.61009788]
[1727415826990,0.49227826,65322.0,65321.0,0.81242934]
[1727415828165,0.49227826,65322.0,65321.0,0.279917]
[1727415828604,0.49227826,65322.0,65321.0,0.41397836]
[1727415829042,0.47827826,65322.0,65321.0,0.276917]
[1727415829266,0.48027826,65322.0,65321.0,0.42097836]
[1727415829487,0.47927826,65322.0,65321.0,0.41797836]
[1727415829699,0.47927826,65322.0,65321.0,0.41597836]
[1727415829700,0.47827826,65322.0,65321.0,0.41597836]
[1727415830133,0.47827826,65322.0,65321.0,0.41697836]
[1727415830350,0.47827826,65322.0,65321.0,0.279917]
[1727415831579,0.460876,65322.0,65321.0,0.41701203]
[1727415831785,0.47827826,65322.0,65321.0,0.41701203]
[1727415832014,0.47827826,65322.0,65321.0,0.279917]
[1727415833861,0.460876,65322.0,65321.0,0.279917]
[1727415834318,0.47827826,65322.0,65321.0,0.279917]
[1727415835850,0.66529747,65322.0,65321.0,0.003827]
[1727415836062,0.99427741,65322.0,65321.0,0.003827]
[1727415836498,0.81838447,65322.0,65321.0,0.003827]
[1727415836714,0.81838447,65322.0,65321.0,0.002827]
[1727415838334,0.82838447,65322.0,65321.0,0.000827]
[1727415838561,0.83838447,65322.0,65321.0,0.000827]
[1727415838792,0.81838447,65322.0,65321.0,0.000827]
[1727415839023,0.83238447,65322.0,65321.0,0.000827]
[1727415839227,0.87038632,65322.0,65321.0,0.000827]
[1727415839469,1.02677438,65322.0,65321.0,0.000827]
[1727415839680,0.87038632,65322.0,65321.0,0.000827]
[1727415842330,0.86370908,65322.0,65321.0,0.000827]
[1727415845713,0.86370908,65322.0,65321.0,0.0466046]
[1727415845951,0.86370908,65322.0,65321.0,0.000827]
[1727415846841,0.86370908,65322.0,65321.0,0.0466046]
[1727415847497,0.86370908,65322.0,65321.0,0.000827]
[1727415847714,0.86370908,65322.0,65321.0,0.04664949]
[1727415847950,0.86370908,65322.0,65321.0,0.000827]
[1727415848193,0.86370908,65322.0,65321.0,0.04664949]
[1727415848420,0.86370908,65322.0,65321.0,0.000827]
[1727415848655,0.86370908,65322.0,65321.0,0.0694934]
[1727415849552,0.86370908,65322.0,65321.0,0.0923822]
[1727415850448,0.71062208,65322.0,65321.0,0.06960157]
[1727415850697,0.63132208,65322.0,65321.0,0.000827]
[1727415850941,0.60732023,65322.0,65321.0,0.000827]
[1727415851595,0.57932023,65322.0,65321.0,0.000827]
[1727415851814,0.59332023,65322.0,65321.0,0.000827]
[1727415852480,0.59132023,65322.0,65321.0,0.000827]
[1727415853972,0.60332023,65322.0,65321.0,0.000827]
[1727415855910,0.60332023,65322.0,65321.0,0.153917]
[1727415856131,0.60332023,65322.0,65321.0,0.000827]
[1727415856677,0.60332023,65322.0,65321.0,0.153917]
[1727415857135,0.60332023,65322.0,65321.0,0.000827]
[1727415860926,0.75640723,65322.0,65321.0,0.000827]
[1727415861372,0.83900723,65322.0,65321.0,0.000827]
[1727415861793,0.83900723,65322.0,65321.0,0.11545737]
[1727415862006,0.83900723,65322.0,65321.0,0.000827]
[1727415862650,0.82700723,65322.0,65321.0,0.000827]
[1727415864001,0.83900723,65322.0,65321.0,0.000827]
[1727415867022,0.83900723,65322.0,65321.0,0.09253248]
[1727415867245,0.83900723,65322.0,65321.0,0.000827]
[1727415867246,1.17128823,65322.0,65321.0,0.000827]
[1727415868428,1.14728823,65322.0,65321.0,0.000827]
[1727415868876,1.17528823,65322.0,65321.0,0.000827]
[1727415869093,1.16128823,65322.0,65321.0,0.000827]
[1727415869540,1.17528823,65322.0,65321.0,0.000827]
[1727415870280,1.00490017,65322.0,65321.0,0.000827]
[1727415870721,1.01890017,65322.0,65321.0,0.000827]
[1727415871149,1.00490017,65322.0,65321.0,0.000827]
[1727415871362,1.01890017,65322.0,65321.0,0.000827]
[1727415871586,1.00490017,65322.0,65321.0,0.000827]
[1727415871798,1.01890017,65322.0,65321.0,0.000827]
[1727415872013,1.04290279,65322.0,65321.0,0.000827]
[1727415878329,0.98247744,65322.0,65321.0,0.000827]
[1727415878776,1.4196955,65322.0,65321.0,0.000827]
[1727415879012,1.39569288,65322.0,65321.0,0.000827]
[1727415879226,0.426594,65319.0,65318.0,4.7e-05]
[1727415879457,3.38103857,65319.0,65318.0,4.7e-05]
[1727415879669,3.53742663,65319.0,65318.0,4.7e-05]
[1727415879951,1.91777328,65319.0,65318.0,4.7e-05]
[1727415880180,0.90173263,65319.0,65318.0,4.7e-05]
[1727415880616,0.80173263,65319.0,65318.0,0.04591715]
[1727415880830,0.80173263,65319.0,65318.0,4.7e-05]
[1727415881273,0.80173263,65319.0,65318.0,0.09261431]
[1727415881483,0.80173263,65319.0,65318.0,0.09270175]
[1727415881484,0.82973263,65319.0,65318.0,0.09270175]
[1727415881713,0.81573263,65319.0,65318.0,0.09270175]
[1727415881928,1.13409754,65319.0,65318.0,0.09270175]
[1727415882144,1.16209754,65319.0,65318.0,0.000874]
[1727415882407,1.14809754,65319.0,65318.0,0.06974382]
[1727415882612,1.14809754,65319.0,65318.0,0.09270175]